{"text_format":"1","workbook":"xlsx","n_sheets":3,"sheets":["GM aktas","Suvestine","Darbinis"],"not_rendered":{"charts":0,"images":0,"macros":1,"external_links":0,"defined_names":12,"comments":0,"pivot_tables":0},"unopened":[],"bounds":{"document_bytes":16777216,"sheet_cells":100000,"rows_first":2000,"rows_last":500,"rows_between":2000,"halvings":0,"cell_chars":16384,"cell_head_chars":4096},"cells_cut":0,"cells_raw":0,"read":"whole","date_system":"1900"}

{"sheet":"GM aktas","index":0,"n_rows":134,"n_cols":16,"rows_kept":134,"cut":false,"hidden":false,"merged":[[126,0,126,5],[1,0,1,5],[2,0,2,5],[3,0,3,5],[17,2,17,3],[19,2,19,3],[7,2,7,3],[9,2,9,3],[11,2,11,3],[13,2,13,3],[15,2,15,3]]}
[null,null,null,null,null,null,"Priedas Nr. 3"]
["GRĮŽTAMŲJŲ MEDŽIAGŲ AKTAS"]
["Tinkamoms grįžtamosioms medžiagoms"]
["Akto forma galioja iki 2026.06.30"]
[]
[]
[]
["1.","Rangovas","pasirinkti",null,null,null,null,null,null,null,null,null,null,null,{"$f":"IF(C8=\"pasirinkti\",1,0)","v":1}]
[]
["2.","Rangos darbų sutarties Nr.","Įveskite Sutarties Nr.",null,null,null,null,null,null,null,null,null,null,null,{"$f":"IF(C10=\"pasirinkti\",1,0)","v":0}]
[]
["3.","Rangos darbų užsakymo Nr. (iš TIVIS)","Užpildyti",null,null,null,null,null,null,null,null,null,null,null,{"$f":"IF(C12=\"užpildyti\",1,0)","v":1}]
[]
["4.","Objekto pavadinimas pagal TIVIS:","Užpildyti",null,null,null,null,null,null,null,null,null,null,null,{"$f":"IF(C14=\"užpildyti\",1,0)","v":1}]
[]
["5.","Projekto investicinis Nr./Darbų Nr.  (iš TIVIS)","Užpildyti",null,null,null,null,null,null,null,null,null,null,null,1]
[]
["6.","Grįžtamųjų medžiagų atsiradimo priežastis: ","pasirinkti",null,null,null,null,null,null,null,null,null,null,null,1]
[]
["7.","GM akto pateikimo data:","202x-xx-xx",null,null,null,null,null,null,null,null,null,null,null,{"$f":"IF(C20=\"2021-xx-xx\",1,0)","v":0}]
[null,null,null,null,null,null,null,null,null,null,null,null,null,null,null,{"$f":"SUM(O8:O20,O26:O148,O156,O159)","v":7}]
[]
[]
[]
["Eilės Nr.","Prekės pavadinimas","Markė, modelis"," Pastabos","Mato vnt.","Faktiškai perduotas kiekis ","Inventorinis Nr."]
[1,"Slėgio reguliatorius","Regal-2, Pd – 20 mbar","ne senesnis nei 10 m.","vnt.",null,null,{"$f":"IF($C$18=\"rekonstravimas  250196\",IF(F26=\"\",\"\",IF(F26=0,IF(F26<>\"\",\"\"),IF(F26<>\"\",IF(G26<>\"\",\"\",\"Suveskite Inventorinį\"),\"\"))),\"\")","v":""}]
[2,"Slėgio reguliatorius","Regal-3,  Pd – 20 mbar","ne senesnis nei 10 m.","vnt.",null,null,{"$f":"IF($C$18=\"rekonstravimas  250196\",IF(F27=\"\",\"\",IF(F27=0,IF(F27<>\"\",\"\"),IF(F27<>\"\",IF(G27<>\"\",\"\",\"Suveskite Inventorinį\"),\"\"))),\"\")","v":""}]
[3,"Slėgio reguliatorius","Regal-3,  Pd – 3-5 bar","ne senesnis nei 10 m.","vnt.",null,null,""]
[4,"Slėgio reguliatorius","Tartarini FL-BP DN100 PN25,  Pd – 3-5 bar","ne senesnis nei 10 m.","vnt.",null,null,""]
[5,"Slėgio reguliatorius","Tartarini FL-BP DN150 PN25,  Pd – 3-5 bar","ne senesnis nei 10 m.","vnt.",null,null,""]
[6,"Slėgio reguliatorius","Tartarini BFL-BP DN25 PN16,  Pd – 20 mbar","ne senesnis nei 10 m.","vnt.",null,null,""]
[7,"Slėgio reguliatorius","Tartarini BFL-BP DN25 PN16,  Pd – 3-5 bar","ne senesnis nei 10 m.","vnt.",null,null,""]
[8,"Slėgio reguliatorius","Tartarini BFL-BP DN40 PN16, Pd – 20 mbar","ne senesnis nei 10 m.","vnt.",null,null,""]
[9,"Slėgio reguliatorius","Tartarini BFL-BP DN40 PN16,  Pd – 3-5 bar","ne senesnis nei 10 m.","vnt.",null,null,""]
[10,"Slėgio reguliatorius","Tartarini BFL-BP DN50 PN16, Pd – 20 mbar","ne senesnis nei 10 m.","vnt.",null,null,""]
[11,"Slėgio reguliatorius","Tartarini BFL-BP DN50 PN16,  Pd – 3-5 bar","ne senesnis nei 10 m.","vnt.",null,null,""]
[12,"Slėgio reguliatorius","Tartarini BFL-BP DN100 PN16, Pd – 20 mbar","ne senesnis nei 10 m.","vnt.",null,null,""]
[13,"Slėgio reguliatorius","Tartarini BFL-BP DN100 PN16,  Pd – 3-5 bar","ne senesnis nei 10 m.","vnt.",null,null,""]
[14,"Slėgio reguliatorius","Dival 500  DN25/DN40  Pd – 20 mbar","ne senesnis nei 10 m.","vnt.",null,null,""]
[15,"Slėgio reguliatorius","Dival 600  DN25 Pd – 20 mbar","ne senesnis nei 10 m.","vnt.",null,null,""]
[16,"Slėgio reguliatorius","Dival 600  DN25 Pd – 3-5 bar","ne senesnis nei 10 m.","vnt.",null,null,""]
[17,"Slėgio reguliatorius","Dival 600   DN25/DN40   Pd – 20 mbar","ne senesnis nei 10 m.","vnt.",null,null,""]
[18,"Slėgio reguliatorius","Dival 600   DN25/DN40    Pd – 3-5 bar","ne senesnis nei 10 m.","vnt.",null,null,""]
[19,"Slėgio reguliatorius","APERVAL/VB DN25  Pd – 20 mbar","ne senesnis nei 10 m.","vnt.",null,null,""]
[20,"Slėgio reguliatorius","APERVAL/VB DN25  Pd – 3-5 bar","ne senesnis nei 10 m.","vnt.",null,null,""]
[21,"Slėgio reguliatorius","APERVAL/VB DN50  Pd – 20 mbar","ne senesnis nei 10 m.","vnt.",null,null,""]
[22,"Slėgio reguliatorius","APERVAL/VB DN50  Pd – 3-5 bar","ne senesnis nei 10 m.","vnt.",null,null,""]
[23,"Slėgio reguliatorius","APERVAL/VB DN80  Pd – 20 mbar","ne senesnis nei 10 m.","vnt.",null,null,""]
[24,"Slėgio reguliatorius","APERVAL/VB DN80  Pd – 3-5 bar","ne senesnis nei 10 m.","vnt.",null,null,""]
[25,"Slėgio reguliatorius","NORVAL 495+I-N DN50  Pd – 20 mbar","ne senesnis nei 10 m.","vnt.",null,null,""]
[26,"Slėgio reguliatorius","NORVAL 630+I-N nuo 2007 DN65  Pd – 20 mbar","ne senesnis nei 10 m.","vnt.",null,null,""]
[27,"Slėgio reguliatorius","Reval 182 DN150  Pd – 3-5 bar","ne senesnis nei 10 m.","vnt.",null,null,""]
[28,"Slėgio reguliatorius","Aperflux 851 DN150  Pd – 3-5 bar","ne senesnis nei 10 m.","vnt.",null,null,""]
[29,"Apsauginis išmetimo vožtuvas","Tartarini V/50","ne senesnis nei 10 m.","vnt.",null,null,""]
[30,"Apsauginis išmetimo vožtuvas","Tartarini V/60","ne senesnis nei 10 m.","vnt.",null,null,""]
[31,"Apsauginis uždaromasis vožtuvas","Tartatini OS/80X","ne senesnis nei 10 m.","vnt.",null,null,""]
[32,"Apsauginis išmetimo vožtuvas","PIETRO FIORENTINI VS/AM","ne senesnis nei 10 m.","vnt.",null,null,""]
[33,"Dujų filtras","VFA-0,5","ne senesnis nei 10 m.","vnt.",null,null,""]
[34,"Dujų filtras","VFA-1","ne senesnis nei 10 m.","vnt.",null,null,""]
[35,"Dujų filtras","VFA-1,5","ne senesnis nei 10 m.","vnt.",null,null,""]
[36,"Dujų filtras","VFA-2","ne senesnis nei 10 m.","vnt.",null,null,""]
[37,"Dujų filtras","VFA-2,5","ne senesnis nei 10 m.","vnt.",null,null,""]
[38,"Dujų filtras","VFA-3","ne senesnis nei 10 m.","vnt.",null,null,""]
[39,"Dujų filtras","VFA-4","ne senesnis nei 10 m.","vnt.",null,null,""]
[40,"Dujų filtras","VFR-0,5","ne senesnis nei 10 m.","vnt.",null,null,""]
[41,"Dujų filtras","VFR-1","ne senesnis nei 10 m.","vnt.",null,null,""]
[42,"Dujų filtras","VFR-1,5","ne senesnis nei 10 m.","vnt.",null,null,""]
[43,"Dujų filtras","VFR-2","ne senesnis nei 10 m.","vnt.",null,null,""]
[44,"Dujų filtras","VFR-2,5","ne senesnis nei 10 m.","vnt.",null,null,""]
[45,"Dujų filtras","VFR-3","ne senesnis nei 10 m.","vnt.",null,null,""]
[46,"Dujų filtras","VFR-4","ne senesnis nei 10 m.","vnt.",null,null,""]
[47,"Dujų filtras","Lautrette","ne senesnis nei 10 m.","vnt.",null,null,""]
[48,"Plexor mova","BMA05","ne senesnė nei 4 m.","vnt.",null,null,""]
[49,"Plexor mova","BMA06","ne senesnė nei 4 m.","vnt.",null,null,""]
[50,"Plexor mova","BDA06","ne senesnė nei 4 m.","vnt.",null,null,""]
[51,"Diferencinis manometras",null,"ne senesnė nei 4 m.","vnt.",null,null,""]
[52,"Slėgio reguliavimo įtaisas  įėjimas 3/4” plokščias su užmetama veržle,  išėjimas 1¼” plokščias su užmetama veržle kampinis","Q=6m3","ne senesnis nei 6 m.","vnt.",null,null,""]
[53,"Slėgio reguliavimo įtaisas  įėjimas 3/4” plokščias su užmetama veržle,  išėjimas 1¼” plokščias su užmetama veržle kampinis","Q=10m3","ne senesnis nei 6 m.","vnt.",null,null,""]
[54,"Slėgio reguliavimo įtaisas  įėjimas 3/4” plokščias su užmetama veržle,  išėjimas 1¼” plokščias su užmetama veržle kampinis","Q=25m3","ne senesnis nei 6 m.","vnt.",null,null,""]
[55,"Slėgio reguliavimo įtaisas  įėjimas 3/4” plokščias su užmetama veržle,  išėjimas 1¼” plokščias su užmetama veržle kampinis","Q=40m3","ne senesnis nei 6 m.","vnt.",null,null,""]
[56,"Slėgio reguliavimo įtaisas  įėjimas 3/4” plokščias su užmetama veržle,  išėjimas 1¼” plokščias su užmetama veržle kampinis","Q=50m3","ne senesnis nei 6 m.","vnt.",null,null,""]
[57,"Slėgio reguliavimo įtaisas  įėjimas 1¼” plokščias su užmetama veržle,  išėjimas 1¼” plokščias su užmetama veržle  kampinis","Q=75m3","ne senesnis nei 6 m.","vnt.",null,null,""]
[58,"Slėgio reguliavimo įtaisas  įėjimas 1¼” plokščias su užmetama veržle,  išėjimas 1¼” plokščias su užmetama veržle  kampinis","Q=100m3","ne senesnis nei 6 m.","vnt.",null,null,""]
[59,"Slėgio reguliavimo įtaisas  įėjimas 3/4” plokščias su užmetama veržle,  išėjimas 1¼” plokščias su užmetama veržle tiesinis","Q=6m3\n","ne senesnis nei 6 m.","vnt.",null,null,""]
[60,"Slėgio reguliavimo įtaisas  įėjimas 3/4” plokščias su užmetama veržle,  išėjimas 1¼” plokščias su užmetama veržle tiesinis","Q=10m3","ne senesnis nei 6 m.","vnt.",null,null,""]
[61,"Slėgio reguliavimo įtaisas  įėjimas 3/4” plokščias su užmetama veržle,  išėjimas 1¼” plokščias su užmetama veržle tiesinis","Q=25m3","ne senesnis nei 6 m.","vnt.",null,null,""]
[62,"Slėgio reguliavimo įtaisas  įėjimas 3/4” plokščias su užmetama veržle,  išėjimas 1¼” plokščias su užmetama veržle tiesinis","Q=40m3","ne senesnis nei 6 m.","vnt.",null,null,""]
[63,"Slėgio reguliavimo įtaisas  įėjimas 3/4” plokščias su užmetama veržle,  išėjimas 1¼” plokščias su užmetama veržle tiesinis","Q=50m3","ne senesnis nei 6 m.","vnt.",null,null,""]
[64,"Slėgio reguliavimo įtaisas  įėjimas 1¼” plokščias su užmetama veržle,  išėjimas 1¼” plokščias su užmetama veržle tiesinis","Q=75m3","ne senesnis nei 6 m.","vnt.",null,null,""]
[65,"Slėgio reguliavimo įtaisas  įėjimas 1¼” plokščias su užmetama veržle,  išėjimas 1¼” plokščias su užmetama veržle tiesinis","Q=100m3","ne senesnis nei 6 m.","vnt.",null,null,""]
[66,"DSRĮt spintelė","su išėjimu į šoną. Su DSRĮt ir 1 skaitikliu G4T, G6T, G10T. Be bazės","ne senesnis nei 5 m.","vnt.",null,null,{"$f":"IF($C$18=\"rekonstravimas  250196\",IF(F91=\"\",\"\",IF(F91=0,IF(F91<>\"\",\"\"),IF(F91<>\"\",IF(G91<>\"\",\"\",\"Suveskite Inventorinį\"),\"\"))),\"\")","v":""}]
[67,"DSRĮt spintelė","su išėjimu į šoną. Be DSRĮt, su 1 skaitikliu G4T, G6T, G10T. Be bazės","ne senesnis nei 5 m.","vnt.",null,null,""]
[68,"DSRĮt spintelė","su išėjimu žemyn. Su DSRĮt ir 1 skaitikliu G4T, G6T, G10T. Be bazės","ne senesnis nei 5 m.","vnt.",null,null,""]
[69,"DSRĮt spintelė","su išėjimu žemyn. Be DSRĮt, su 1 skaitikliu G4T, G6T, G10T. Be bazės","ne senesnis nei 5 m.","vnt.",null,null,""]
[70,"DSRĮt spintelė","pastatoma. Su DSRĮt ir 1 skaitikliu G4T, G6T, G10T. Su baze","ne senesnis nei 5 m.","vnt.",null,null,""]
[71,"DSRĮt spintelė","pastatoma. . Be DSRĮt, su 1 skaitikliu G4T, G6T, G10T. Su baze","ne senesnis nei 5 m.","vnt.",null,null,""]
[72,"DSRĮt spintelė","pakabinama.  Su DSRĮt ir 2 skaitikliais G4T, G6T. Be bazės","ne senesnis nei 5 m.","vnt.",null,null,""]
[73,"DSRĮt spintelė","pakabinama.   Be DSRĮt, su 2 skaitikliais G4T, G6T. Be bazės","ne senesnis nei 5 m.","vnt.",null,null,""]
[74,"DSRĮt spintelė","pastatoma, su DSRĮt ir 2 skaitikliais G4T, G6T. Su baze.","ne senesnis nei 5 m.","vnt.",null,null,""]
[75,"DSRĮt spintelė","pastatoma, be DSRĮt ir 2 skaitikliais G4T, G6T. Su baze.","ne senesnis nei 5 m.","vnt.",null,null,""]
[76,"DSRĮt spintelė","be DSRĮt su skaitikliu. Tiesinė (kodas -1722)","ne senesnis nei 5 m.","vnt.",null,null,""]
[77,"DSRĮt spintelė","su DSRĮt nuo 10 iki 50 m3/val.. Be skaitiklio. Kampinė (kodas -1012, 2012). Be bazės","ne senesnis nei 5 m.","vnt.",null,null,""]
[78,"DSRĮt spintelė","su DSRĮt nuo 10 iki 50 m3/val.. Be skaitiklio. Kampinė (kodas -2011). Su baze","ne senesnis nei 5 m.","vnt.",null,null,""]
[79,"DSRĮt spintelė","su DSRĮt nuo 75 iki 10 m3/val.. Be skaitiklio. Kampinė (kodas -1012) Be bazės","ne senesnis nei 5 m.","vnt.",null,null,""]
[80,"DSRĮt spintelė","su 3skaitikliais (G4T). Su/be DSRĮt. Su baze.","ne senesnis nei 5 m.","vnt.",null,null,""]
[81,"DSRĮt spintelė","su 4 skaitikliais (G4T). Su/be DSRĮt. Su baze.","ne senesnis nei 5 m.","vnt.",null,null,""]
[82,"DSRĮt spintelė","su 5 skaitikliais (G4T). Su/be DSRĮt. Su baze.","ne senesnis nei 5 m.","vnt.",null,null,""]
[83,"DSRĮt spintelė","su 6 skaitikliais (G4T). Su/be DSRĮt. Su baze","ne senesnis nei 5 m.","vnt.",null,null,""]
[84,"DSRĮt spintelės durų užraktas",null,null,"vnt.",null,null,""]
[85,"DSRĮt spintelės durelės",null,null,"vnt.",null,null,""]
[86,"DSRĮt spintelės vyrių komplektas",null,null,"vnt.",null,null,""]
[87,"DSRĮt spintelės langelis",null,null,"vnt.",null,null,""]
[88,"Antžeminės flanšinės pleištinės sklendės, PN 16","DN (Diš) 50 (57,3) mm","ne senesnis nei 15 m.","vnt.",null,null,""]
[89,"Antžeminės flanšinės pleištinės sklendės, PN 16","DN (Diš) 80 (89) mm","ne senesnis nei 15 m.","vnt.",null,null,""]
[90,"Antžeminės flanšinės pleištinės sklendės, PN 16","DN (Diš) 100 (108) mm","ne senesnis nei 15 m.","vnt.",null,null,""]
[91,"Antžeminės flanšinės pleištinės sklendės, PN 16","DN (Diš) 150 (159) mm","ne senesnis nei 15 m.","vnt.",null,null,""]
[92,"Antžeminės flanšinės pleištinės sklendės, PN 16","DN (Diš) 200 (219) mm","ne senesnis nei 15 m.","vnt.",null,null,""]
[93,"Antžeminės flanšinės pleištinės sklendės, PN 16","DN (Diš) 250 (273) mm","ne senesnis nei 15 m.","vnt.",null,null,""]
[94,"Antžeminės flanšinės pleištinės sklendės, PN 16","DN (Dsąl) 300 mm","ne senesnis nei 15 m.","vnt.",null,null,""]
[95,"Antžeminės flanšinės pleištinės sklendės, PN 16",298,"ne senesnis nei 15 m.","vnt.",null,null,""]
[96,"Katodinės stoties keitiklis",null,"ne senesnis nei 10 m.","vnt.",null,null,""]
[97,"Kontrolės matavimo kolonėlė",null,"ne senesnė nei 10 m.","vnt.",null,null,""]
[null,null,null,null,null,{"$f":"SUM(F26:F122)","v":0}]
[]
[]
[]
[]
[]
[]
[null,"Atsakingas asmuo\n(Techninis prižiūrėtojas)",null,null,null,null,null,null,null,null,null,null,null,null,{"$f":"IF(F130=\"\",1,0)","v":1}]
[null,null,null,null,null,"Vardas, pavardė, parašas"]
[]
[null,"Darbų vykdytojas\n(Rangovas)",null,null,null,null,null,null,null,null,null,null,null,null,{"$f":"IF(F133=\"\",1,0)","v":1}]
[null,null," ",null,null,"Vardas, pavardė, parašas"]

{"sheet":"Suvestine","index":1,"n_rows":109,"n_cols":11,"rows_kept":109,"cut":false,"hidden":false,"merged":[]}
[null,"GRĮŽTAMŲJŲ MEDŽIAGŲ AKTO SUVESTINĖ"]
[]
[{"$f":"'GM aktas'!A8","v":"1."},{"$f":"'GM aktas'!B8","v":"Rangovas"},{"$f":"'GM aktas'!C8","v":"pasirinkti"}]
[{"$f":"'GM aktas'!A10","v":"2."},{"$f":"'GM aktas'!B10","v":"Rangos darbų sutarties Nr."},{"$f":"'GM aktas'!C10","v":"Įveskite Sutarties Nr."}]
[{"$f":"'GM aktas'!A12","v":"3."},{"$f":"'GM aktas'!B12","v":"Rangos darbų užsakymo Nr. (iš TIVIS)"},{"$f":"'GM aktas'!C12","v":"Užpildyti"}]
[{"$f":"'GM aktas'!A14","v":"4."},{"$f":"'GM aktas'!B14","v":"Objekto pavadinimas pagal TIVIS:"},{"$f":"'GM aktas'!C14","v":"Užpildyti"}]
[{"$f":"'GM aktas'!A16","v":"5."},{"$f":"'GM aktas'!B16","v":"Projekto investicinis Nr./Darbų Nr.  (iš TIVIS)"},{"$f":"'GM aktas'!C16","v":"Užpildyti"}]
[{"$f":"'GM aktas'!A18","v":"6."},{"$f":"'GM aktas'!B18","v":"Grįžtamųjų medžiagų atsiradimo priežastis: "},"pasirinkti"]
[{"$f":"'GM aktas'!A20","v":"7."},{"$f":"'GM aktas'!B20","v":"GM akto pateikimo data:"},{"$f":"'GM aktas'!C20","v":"202x-xx-xx"}]
[null,null,"pasirinkti"]
["Prekės pavadinimas","Markė, modelis","Mato vnt.","Dynamics kodas","Pastaba, kodėl kodo nėra automatu","Mato vnt.","Kiekis","Pajamavimo kaina","Suma",null,"Skaičius"]
["Slėgio reguliatorius","Regal-2, Pd – 20 mbar","vnt.",22101000630007,"ne senesnis nei 10 m.",{"$f":"C12","v":"vnt."},{"$f":"'GM aktas'!F26","v":0},1.08,{"$f":"G12*H12","v":0},null,{"$f":"IF(G12>0,1,0)","v":0}]
["Slėgio reguliatorius","Regal-3,  Pd – 20 mbar","vnt.",22101000630011,"ne senesnis nei 10 m.",{"$f":"C13","v":"vnt."},{"$f":"'GM aktas'!F27","v":0},5.3999999999999995,{"$f":"G13*H13","v":0},null,{"$f":"IF(G13>0,1,0)","v":0}]
["Slėgio reguliatorius","Regal-3,  Pd – 3-5 bar","vnt.",22101000630012,"ne senesnis nei 10 m.","vnt.",{"$f":"'GM aktas'!F28","v":0},5.3999999999999995,0,null,0]
["Slėgio reguliatorius","Tartarini FL-BP DN100 PN25,  Pd – 3-5 bar","vnt.",22101000630013,"ne senesnis nei 10 m.","vnt.",{"$f":"'GM aktas'!F29","v":0},18.899999999999999,0,null,0]
["Slėgio reguliatorius","Tartarini FL-BP DN150 PN25,  Pd – 3-5 bar","vnt.",22101000630001,"ne senesnis nei 10 m.","vnt.",{"$f":"'GM aktas'!F30","v":0},45.9,0,null,0]
["Slėgio reguliatorius","Tartarini BFL-BP DN25 PN16,  Pd – 20 mbar","vnt.",22101000520118,"ne senesnis nei 10 m.","vnt.",{"$f":"'GM aktas'!F31","v":0},6.84,0,null,0]
["Slėgio reguliatorius","Tartarini BFL-BP DN25 PN16,  Pd – 3-5 bar","vnt.",22101000520120,"ne senesnis nei 10 m.","vnt.",{"$f":"'GM aktas'!F32","v":0},6.84,0,null,0]
["Slėgio reguliatorius","Tartarini BFL-BP DN40 PN16, Pd – 20 mbar","vnt.",22101000520121,"ne senesnis nei 10 m.","vnt.",{"$f":"'GM aktas'!F33","v":0},9,0,null,0]
["Slėgio reguliatorius","Tartarini BFL-BP DN40 PN16,  Pd – 3-5 bar","vnt.",22101000520102,"ne senesnis nei 10 m.","vnt.",{"$f":"'GM aktas'!F34","v":0},9,0,null,0]
["Slėgio reguliatorius","Tartarini BFL-BP DN50 PN16, Pd – 20 mbar","vnt.",22101000520127,"ne senesnis nei 10 m.","vnt.",{"$f":"'GM aktas'!F35","v":0},10.799999999999999,0,null,0]
["Slėgio reguliatorius","Tartarini BFL-BP DN50 PN16,  Pd – 3-5 bar","vnt.",22101000520128,"ne senesnis nei 10 m.","vnt.",{"$f":"'GM aktas'!F36","v":0},10.799999999999999,0,null,0]
["Slėgio reguliatorius","Tartarini BFL-BP DN100 PN16, Pd – 20 mbar","vnt.",22101000520129,"ne senesnis nei 10 m.","vnt.",{"$f":"'GM aktas'!F37","v":0},35.46,0,null,0]
["Slėgio reguliatorius","Tartarini BFL-BP DN100 PN16,  Pd – 3-5 bar","vnt.",22101000520130,"ne senesnis nei 10 m.","vnt.",{"$f":"'GM aktas'!F38","v":0},35.46,0,null,0]
["Slėgio reguliatorius","Dival 500  DN25/DN40  Pd – 20 mbar","vnt.",22101000520131,"ne senesnis nei 10 m.","vnt.",{"$f":"'GM aktas'!F39","v":0},0.89999999999999991,0,null,0]
["Slėgio reguliatorius","Dival 600  DN25 Pd – 20 mbar","vnt.",22101000520125,"ne senesnis nei 10 m.","vnt.",{"$f":"'GM aktas'!F40","v":0},2.88,0,null,0]
["Slėgio reguliatorius","Dival 600  DN25 Pd – 3-5 bar","vnt.",22101000520126,"ne senesnis nei 10 m.","vnt.",{"$f":"'GM aktas'!F41","v":0},2.88,0,null,0]
["Slėgio reguliatorius","Dival 600   DN25/DN40   Pd – 20 mbar","vnt.",22101000520122,"ne senesnis nei 10 m.","vnt.",{"$f":"'GM aktas'!F42","v":0},3.2399999999999998,0,null,0]
["Slėgio reguliatorius","Dival 600   DN25/DN40    Pd – 3-5 bar","vnt.",22101000520123,"ne senesnis nei 10 m.","vnt.",{"$f":"'GM aktas'!F43","v":0},3.2399999999999998,0,null,0]
["Slėgio reguliatorius","APERVAL/VB DN25  Pd – 20 mbar","vnt.",22101000520124,"ne senesnis nei 10 m.","vnt.",{"$f":"'GM aktas'!F44","v":0},3.5999999999999996,0,null,0]
["Slėgio reguliatorius","APERVAL/VB DN25  Pd – 3-5 bar","vnt.",22101000620019,"ne senesnis nei 10 m.","vnt.",{"$f":"'GM aktas'!F45","v":0},3.5999999999999996,0,null,0]
["Slėgio reguliatorius","APERVAL/VB DN50  Pd – 20 mbar","vnt.",22101000620020,"ne senesnis nei 10 m.","vnt.",{"$f":"'GM aktas'!F46","v":0},6.12,0,null,0]
["Slėgio reguliatorius","APERVAL/VB DN50  Pd – 3-5 bar","vnt.",22101000620021,"ne senesnis nei 10 m.","vnt.",{"$f":"'GM aktas'!F47","v":0},6.12,0,null,0]
["Slėgio reguliatorius","APERVAL/VB DN80  Pd – 20 mbar","vnt.",22101000560078,"ne senesnis nei 10 m.","vnt.",{"$f":"'GM aktas'!F48","v":0},10.26,0,null,0]
["Slėgio reguliatorius","APERVAL/VB DN80  Pd – 3-5 bar","vnt.",22101000560084,"ne senesnis nei 10 m.","vnt.",{"$f":"'GM aktas'!F49","v":0},10.26,0,null,0]
["Slėgio reguliatorius","NORVAL 495+I-N DN50  Pd – 20 mbar","vnt.",22101000560079,"ne senesnis nei 10 m.","vnt.",{"$f":"'GM aktas'!F50","v":0},9.9,0,null,0]
["Slėgio reguliatorius","NORVAL 630+I-N nuo 2007 DN65  Pd – 20 mbar","vnt.",22101000560080,"ne senesnis nei 10 m.","vnt.",{"$f":"'GM aktas'!F51","v":0},14.76,0,null,0]
["Slėgio reguliatorius","Reval 182 DN150  Pd – 3-5 bar","vnt.",22101000560081,"ne senesnis nei 10 m.","vnt.",{"$f":"'GM aktas'!F52","v":0},35.1,0,null,0]
["Slėgio reguliatorius","Aperflux 851 DN150  Pd – 3-5 bar","vnt.",22101000560082,"ne senesnis nei 10 m.","vnt.",{"$f":"'GM aktas'!F53","v":0},42.3,0,null,0]
["Apsauginis išmetimo vožtuvas","Tartarini V/50","vnt.",22101000560083,"ne senesnis nei 10 m.","vnt.",{"$f":"'GM aktas'!F54","v":0},0.23399999999999999,0,null,0]
["Apsauginis išmetimo vožtuvas","Tartarini V/60","vnt.",22101000560069,"ne senesnis nei 10 m.","vnt.",{"$f":"'GM aktas'!F55","v":0},0.34199999999999997,0,null,0]
["Apsauginis uždaromasis vožtuvas","Tartatini OS/80X","vnt.",22101000550013,"ne senesnis nei 10 m.","vnt.",{"$f":"'GM aktas'!F56","v":0},1.3499999999999999,0,null,0]
["Apsauginis išmetimo vožtuvas","PIETRO FIORENTINI VS/AM","vnt.",22101000550014,"ne senesnis nei 10 m.","vnt.",{"$f":"'GM aktas'!F57","v":0},0.108,0,null,0]
["Dujų filtras","VFA-0,5","vnt.",22101000550042,"ne senesnis nei 10 m.","vnt.",{"$f":"'GM aktas'!F58","v":0},4.4000000000000004,0,null,0]
["Dujų filtras","VFA-1","vnt.",22101000550043,"ne senesnis nei 10 m.","vnt.",{"$f":"'GM aktas'!F59","v":0},6.6,0,null,0]
["Dujų filtras","VFA-1,5","vnt.",null,"ne senesnis nei 10 m.","vnt.",{"$f":"'GM aktas'!F60","v":0},9.24,0,null,0]
["Dujų filtras","VFA-2","vnt.",null,"ne senesnis nei 10 m.","vnt.",{"$f":"'GM aktas'!F61","v":0},14.08,0,null,0]
["Dujų filtras","VFA-2,5","vnt.",null,"ne senesnis nei 10 m.","vnt.",{"$f":"'GM aktas'!F62","v":0},18.7,0,null,0]
["Dujų filtras","VFA-3","vnt.",22101000760241,"ne senesnis nei 10 m.","vnt.",{"$f":"'GM aktas'!F63","v":0},25.3,0,null,0]
["Dujų filtras","VFA-4","vnt.",22101000760241,"ne senesnis nei 10 m.","vnt.",{"$f":"'GM aktas'!F64","v":0},55,0,null,0]
["Dujų filtras","VFR-0,5","vnt.",null,"ne senesnis nei 10 m.","vnt.",{"$f":"'GM aktas'!F65","v":0},5.5,0,null,0]
["Dujų filtras","VFR-1","vnt.",null,"ne senesnis nei 10 m.","vnt.",{"$f":"'GM aktas'!F66","v":0},6.6,0,null,0]
["Dujų filtras","VFR-1,5","vnt.",null,"ne senesnis nei 10 m.","vnt.",{"$f":"'GM aktas'!F67","v":0},9.24,0,null,0]
["Dujų filtras","VFR-2","vnt.",null,"ne senesnis nei 10 m.","vnt.",{"$f":"'GM aktas'!F68","v":0},14.08,0,null,0]
["Dujų filtras","VFR-2,5","vnt.",null,"ne senesnis nei 10 m.","vnt.",{"$f":"'GM aktas'!F69","v":0},18.7,0,null,0]
["Dujų filtras","VFR-3","vnt.",null,"ne senesnis nei 10 m.","vnt.",{"$f":"'GM aktas'!F70","v":0},25.3,0,null,0]
["Dujų filtras","VFR-4","vnt.",null,"ne senesnis nei 10 m.","vnt.",{"$f":"'GM aktas'!F71","v":0},55,0,null,0]
["Dujų filtras","Lautrette","vnt.",22101000370053,"ne senesnis nei 10 m.","vnt.",{"$f":"'GM aktas'!F72","v":0},1.04,0,null,0]
["Plexor mova","BMA05","vnt.",22101000790048,"ne senesnė nei 4 m.","vnt.",{"$f":"'GM aktas'!F73","v":0},1,0,null,0]
["Plexor mova","BMA06","vnt.",22101000790050,"ne senesnė nei 4 m.","vnt.",{"$f":"'GM aktas'!F74","v":0},1,0,null,0]
["Plexor mova","BDA06","vnt.",22101000790049,"ne senesnė nei 4 m.","vnt.",{"$f":"'GM aktas'!F75","v":0},1,0,null,0]
["Diferencinis manometras",null,"vnt.",22101000370074,"ne senesnė nei 4 m.","vnt.",{"$f":"'GM aktas'!F76","v":0},1,0,null,0]
["Slėgio reguliavimo įtaisas  įėjimas 3/4” plokščias su užmetama veržle,  išėjimas 1¼” plokščias su užmetama veržle kampinis","Q=6m3","vnt.",22101000370073,"ne senesnis nei 6 m.","vnt.",{"$f":"'GM aktas'!F77","v":0},1.04,0,null,0]
["Slėgio reguliavimo įtaisas  įėjimas 3/4” plokščias su užmetama veržle,  išėjimas 1¼” plokščias su užmetama veržle kampinis","Q=10m3","vnt.",22101000370077,"ne senesnis nei 6 m.","vnt.",{"$f":"'GM aktas'!F78","v":0},1.04,0,null,0]
["Slėgio reguliavimo įtaisas  įėjimas 3/4” plokščias su užmetama veržle,  išėjimas 1¼” plokščias su užmetama veržle kampinis","Q=25m3","vnt.",22101000370075,"ne senesnis nei 6 m.","vnt.",{"$f":"'GM aktas'!F79","v":0},1.04,0,null,0]
["Slėgio reguliavimo įtaisas  įėjimas 3/4” plokščias su užmetama veržle,  išėjimas 1¼” plokščias su užmetama veržle kampinis","Q=40m3","vnt.",null,"ne senesnis nei 6 m.","vnt.",{"$f":"'GM aktas'!F80","v":0},1.248,0,null,0]
["Slėgio reguliavimo įtaisas  įėjimas 3/4” plokščias su užmetama veržle,  išėjimas 1¼” plokščias su užmetama veržle kampinis","Q=50m3","vnt.",null,"ne senesnis nei 6 m.","vnt.",{"$f":"'GM aktas'!F81","v":0},1.248,0,null,0]
["Slėgio reguliavimo įtaisas  įėjimas 1¼” plokščias su užmetama veržle,  išėjimas 1¼” plokščias su užmetama veržle  kampinis","Q=75m3","vnt.",null,"ne senesnis nei 6 m.","vnt.",{"$f":"'GM aktas'!F82","v":0},1.6640000000000001,0,null,0]
["Slėgio reguliavimo įtaisas  įėjimas 1¼” plokščias su užmetama veržle,  išėjimas 1¼” plokščias su užmetama veržle  kampinis","Q=100m3","vnt.",22101000900044,"ne senesnis nei 6 m.","vnt.",{"$f":"'GM aktas'!F83","v":0},1.6640000000000001,0,null,0]
["Slėgio reguliavimo įtaisas  įėjimas 3/4” plokščias su užmetama veržle,  išėjimas 1¼” plokščias su užmetama veržle tiesinis","Q=6m3\n","vnt.",22101000340003,"ne senesnis nei 6 m.","vnt.",{"$f":"'GM aktas'!F84","v":0},1.04,0,null,0]
["Slėgio reguliavimo įtaisas  įėjimas 3/4” plokščias su užmetama veržle,  išėjimas 1¼” plokščias su užmetama veržle tiesinis","Q=10m3","vnt.",22101000580002,"ne senesnis nei 6 m.","vnt.",{"$f":"'GM aktas'!F85","v":0},1.04,0,null,0]
["Slėgio reguliavimo įtaisas  įėjimas 3/4” plokščias su užmetama veržle,  išėjimas 1¼” plokščias su užmetama veržle tiesinis","Q=25m3","vnt.",22101000580041,"ne senesnis nei 6 m.","vnt.",{"$f":"'GM aktas'!F86","v":0},1.04,0,null,0]
["Slėgio reguliavimo įtaisas  įėjimas 3/4” plokščias su užmetama veržle,  išėjimas 1¼” plokščias su užmetama veržle tiesinis","Q=40m3","vnt.",22101000580042,"ne senesnis nei 6 m.","vnt.",{"$f":"'GM aktas'!F87","v":0},1.248,0,null,0]
["Slėgio reguliavimo įtaisas  įėjimas 3/4” plokščias su užmetama veržle,  išėjimas 1¼” plokščias su užmetama veržle tiesinis","Q=50m3","vnt.",22101000580043,"ne senesnis nei 6 m.","vnt.",{"$f":"'GM aktas'!F88","v":0},1.248,0,null,0]
["Slėgio reguliavimo įtaisas  įėjimas 1¼” plokščias su užmetama veržle,  išėjimas 1¼” plokščias su užmetama veržle tiesinis","Q=75m3","vnt.",22101000580044,"ne senesnis nei 6 m.","vnt.",{"$f":"'GM aktas'!F89","v":0},1.6640000000000001,0,null,0]
["Slėgio reguliavimo įtaisas  įėjimas 1¼” plokščias su užmetama veržle,  išėjimas 1¼” plokščias su užmetama veržle tiesinis","Q=100m3","vnt.",null,"ne senesnis nei 6 m.","vnt.",{"$f":"'GM aktas'!F90","v":0},1.6640000000000001,0,null,0]
["DSRĮt spintelė","su išėjimu į šoną. Su DSRĮt ir 1 skaitikliu G4T, G6T, G10T. Be bazės","vnt.",null,"ne senesnis nei 5 m.",{"$f":"C77","v":"vnt."},{"$f":"'GM aktas'!F91","v":0},1,{"$f":"G77*H77","v":0},null,{"$f":"IF(G77>0,1,0)","v":0}]
["DSRĮt spintelė","su išėjimu į šoną. Be DSRĮt, su 1 skaitikliu G4T, G6T, G10T. Be bazės","vnt.",null,"ne senesnis nei 5 m.","vnt.",{"$f":"'GM aktas'!F92","v":0},1,0,null,0]
["DSRĮt spintelė","su išėjimu žemyn. Su DSRĮt ir 1 skaitikliu G4T, G6T, G10T. Be bazės","vnt.",null,"ne senesnis nei 5 m.","vnt.",{"$f":"'GM aktas'!F93","v":0},1,0,null,0]
["DSRĮt spintelė","su išėjimu žemyn. Be DSRĮt, su 1 skaitikliu G4T, G6T, G10T. Be bazės","vnt.",null,"ne senesnis nei 5 m.","vnt.",{"$f":"'GM aktas'!F94","v":0},1,0,null,0]
["DSRĮt spintelė","pastatoma. Su DSRĮt ir 1 skaitikliu G4T, G6T, G10T. Su baze","vnt.",null,"ne senesnis nei 5 m.","vnt.",{"$f":"'GM aktas'!F95","v":0},1,0,null,0]
["DSRĮt spintelė","pastatoma. . Be DSRĮt, su 1 skaitikliu G4T, G6T, G10T. Su baze","vnt.",22101000580039,"ne senesnis nei 5 m.","vnt.",{"$f":"'GM aktas'!F96","v":0},1,0,null,0]
["DSRĮt spintelė","pakabinama.  Su DSRĮt ir 2 skaitikliais G4T, G6T. Be bazės","vnt.",22101000340125,"ne senesnis nei 5 m.","vnt.",{"$f":"'GM aktas'!F97","v":0},1,0,null,0]
["DSRĮt spintelė","pakabinama.   Be DSRĮt, su 2 skaitikliais G4T, G6T. Be bazės","vnt.",22101000340211,"ne senesnis nei 5 m.","vnt.",{"$f":"'GM aktas'!F98","v":0},1,0,null,0]
["DSRĮt spintelė","pastatoma, su DSRĮt ir 2 skaitikliais G4T, G6T. Su baze.","vnt.",22101000340125,"ne senesnis nei 5 m.","vnt.",{"$f":"'GM aktas'!F99","v":0},1,0,null,0]
["DSRĮt spintelė","pastatoma, be DSRĮt ir 2 skaitikliais G4T, G6T. Su baze.","vnt.",22101000340130,"ne senesnis nei 5 m.","vnt.",{"$f":"'GM aktas'!F100","v":0},1,0,null,0]
["DSRĮt spintelė","be DSRĮt su skaitikliu. Tiesinė (kodas -1722)","vnt.",22101000340119,"ne senesnis nei 5 m.","vnt.",{"$f":"'GM aktas'!F101","v":0},1,0,null,0]
["DSRĮt spintelė","su DSRĮt nuo 10 iki 50 m3/val.. Be skaitiklio. Kampinė (kodas -1012, 2012). Be bazės","vnt.",null,"ne senesnis nei 5 m.","vnt.",{"$f":"'GM aktas'!F102","v":0},1,0,null,0]
["DSRĮt spintelė","su DSRĮt nuo 10 iki 50 m3/val.. Be skaitiklio. Kampinė (kodas -2011). Su baze","vnt.",22101000340132,"ne senesnis nei 5 m.","vnt.",{"$f":"'GM aktas'!F103","v":0},1,0,null,0]
["DSRĮt spintelė","su DSRĮt nuo 75 iki 10 m3/val.. Be skaitiklio. Kampinė (kodas -1012) Be bazės","vnt.",22101000340133,"ne senesnis nei 5 m.","vnt.",{"$f":"'GM aktas'!F104","v":0},1,0,null,0]
["DSRĮt spintelė","su 3skaitikliais (G4T). Su/be DSRĮt. Su baze.","vnt.",22101000340123,"ne senesnis nei 5 m.","vnt.",{"$f":"'GM aktas'!F105","v":0},1,0,null,0]
["DSRĮt spintelė","su 4 skaitikliais (G4T). Su/be DSRĮt. Su baze.","vnt.",22101000340122,"ne senesnis nei 5 m.","vnt.",{"$f":"'GM aktas'!F106","v":0},1,0,null,0]
["DSRĮt spintelė","su 5 skaitikliais (G4T). Su/be DSRĮt. Su baze.","vnt.",null,"ne senesnis nei 5 m.","vnt.",{"$f":"'GM aktas'!F107","v":0},1,0,null,0]
["DSRĮt spintelė","su 6 skaitikliais (G4T). Su/be DSRĮt. Su baze","vnt.",null,"ne senesnis nei 5 m.","vnt.",{"$f":"'GM aktas'!F108","v":0},1,0,null,0]
["DSRĮt spintelės durų užraktas",null,"vnt.",null,null,"vnt.",{"$f":"'GM aktas'!F109","v":0},1,0,null,0]
["DSRĮt spintelės durelės",null,"vnt.",null,null,"vnt.",{"$f":"'GM aktas'!F110","v":0},1,0,null,0]
["DSRĮt spintelės vyrių komplektas",null,"vnt.",null,null,"vnt.",{"$f":"'GM aktas'!F111","v":0},1,0,null,0]
["DSRĮt spintelės langelis",null,"vnt.",null,null,"vnt.",{"$f":"'GM aktas'!F112","v":0},1,0,null,0]
["Antžeminės flanšinės pleištinės sklendės, PN 16","DN (Diš) 50 (57,3) mm","vnt.",null,"ne senesnis nei 15 m.","vnt.",{"$f":"'GM aktas'!F113","v":0},2.1,0,null,0]
["Antžeminės flanšinės pleištinės sklendės, PN 16","DN (Diš) 80 (89) mm","vnt.",null,"ne senesnis nei 15 m.","vnt.",{"$f":"'GM aktas'!F114","v":0},3.15,0,null,0]
["Antžeminės flanšinės pleištinės sklendės, PN 16","DN (Diš) 100 (108) mm","vnt.",null,"ne senesnis nei 15 m.","vnt.",{"$f":"'GM aktas'!F115","v":0},4.41,0,null,0]
["Antžeminės flanšinės pleištinės sklendės, PN 16","DN (Diš) 150 (159) mm","vnt.",null,"ne senesnis nei 15 m.","vnt.",{"$f":"'GM aktas'!F116","v":0},8.61,0,null,0]
["Antžeminės flanšinės pleištinės sklendės, PN 16","DN (Diš) 200 (219) mm","vnt.",null,"ne senesnis nei 15 m.","vnt.",{"$f":"'GM aktas'!F117","v":0},13.02,0,null,0]
["Antžeminės flanšinės pleištinės sklendės, PN 16","DN (Diš) 250 (273) mm","vnt.",null,"ne senesnis nei 15 m.","vnt.",{"$f":"'GM aktas'!F118","v":0},19.739999999999998,0,null,0]
["Antžeminės flanšinės pleištinės sklendės, PN 16","DN (Dsąl) 300 mm","vnt.",null,"ne senesnis nei 15 m.","vnt.",{"$f":"'GM aktas'!F119","v":0},25.619999999999997,0,null,0]
["Antžeminės flanšinės pleištinės sklendės, PN 16",298,"vnt.",null,"ne senesnis nei 15 m.","vnt.",{"$f":"'GM aktas'!F120","v":0},62.58,0,null,0]
["Katodinės stoties keitiklis",null,"vnt.",null,"ne senesnis nei 10 m.","vnt.",{"$f":"'GM aktas'!F121","v":0},1,0,null,0]
["Kontrolės matavimo kolonėlė",null,"vnt.",null,"ne senesnė nei 10 m.","vnt.",{"$f":"'GM aktas'!F122","v":0},1,0,null,0]
[null,null,null,null,null,null,{"$f":"SUM(G12:G108)","v":0},null,{"$f":"SUM(I12:I108)","v":0},null,1]

{"sheet":"Darbinis","index":2,"n_rows":33,"n_cols":9,"rows_kept":33,"cut":false,"hidden":true,"merged":[]}
["Grįžtamųjų medžiagų atsiradimo priežastis: ","Rangovas",null,null,"Rangos darbų sutarties Nr."]
["pasirinkti",null,null,"Rangovas","Pasirinkti"]
["6113013 – Remontas","pasirinkti",null,"UAB DS1","40410/501400"]
["2525002 – Rekonstravimas, įrenginių likvidavimas","UAB Asirinta",null,null,"40410/530098",null,null,"UAB Labas GAS","40410/530143"]
[null,"UAB DS1",null,null,null,null,null,"UAB Labas GAS","40410/530098"]
[null,"UAB Dujotiekio statyba",null,null,null,null,null,"UAB Labas GAS","40410/500909"]
[null,"UAB Dujus",null,null,null,null,null,"UAB Labas GAS","40410/500842"]
[null,"UAB Dusta",null,null,null,null,null,"UAB Labas GAS","\t40410/500844"]
[null,"UAB Geovizija",null,null,null,null,null,"UAB Labas GAS","\t40410/500859"]
[null,"UAB Labas GAS",null,null,null,null,null,"UAB Labas GAS","40410/500922"]
[null,"UAB Para",null,null,null,null,null,"UAB Labas GAS","40410/500851"]
[null,"UAB Rimgauda",null,null,null,null,null,"UAB Labas GAS","\t40410/500839"]
[null,"UAB Sandaila",null,null,null,null,null,"UAB Labas GAS","\t40410/500841"]
[null,"UAB Skominta",null,"UAB Para","40410/501349"]
[null,"UAB Skomintos statyba",null,"UAB Para","40410/501345"]
[null,"UAB Transmodo",null,"UAB Para","40410/501348"]
[null,"UAB Vytrita"]
[null,"UAB Žilinskis ir Co",null,"UAB Rimgauda","40410/500801"]
[null,null,null,"UAB Rimgauda","40410/500808"]
[null,null,null,"UAB Rimgauda","40410/500809"]
[]
[null,null,null,"UAB Skominta","40410/502027"]
[null,null,null,"UAB Skominta","40410/501399"]
[null,null,null,"UAB Skominta","40410/501397",null,null,"UAB Sandaila","40410/530101"]
[null,null,null,"UAB Skominta","40410/501403"]
[null,null,null,"UAB Skominta","40410/501396"]
[null,null,null,"UAB Skominta","40410/501398"]
[]
[]
[]
[null,null,null,"UAB Geovizija","40410/521020 "]
[null,null,null,"UAB Geovizija","40410/530102"]
[null,null,null,null,null,null,null,"UAB Dujotiekio statyba","40410/530099"]